Cogmind - Beta 14 @@@ ROGUE MODE // 2024.10.31 @ 22:01:31 Player: morimori Result: Destroyed by Y-45 Defender with Beam Rifle Performance ------------- Evolutions (0) 0 Regions Visited (2) 400 Robots Destroyed (44) 220 Value Destroyed (1042) 1042 Prototype IDs (0) 0 Alien Tech Used (0) 0 Bonus (77) 77 TOTAL SCORE: 1739 Bonus ------- High Alert Combat Kills 77 Cogmind --------- Core Integrity 0/250 Matter 229/300 Energy 125/125 System Corruption 0% Temperature Cool (27) Movement Rolling (140) Ox4 Location -10/Mines Parts ------- > --- POWER (1) -------- Light Ion Engine > --- PROPULSION (2) --- Wheel Wheel > --- UTILITY (2) ------ Huge Storage Unit Seismic Detector > --- WEAPON (2) ------- Light Assault Rifle Light Assault Rifle > --- INVENTORY (25) --- Ion Engine Light Ion Engine Light Nuclear Core Wheel Compact Wheel Hover Unit Hover Unit Hover Unit Hover Unit Hover Unit Heat Sink Large Storage Unit Sensor Array Improved Terrain Scanner Terrain Scan Processor Hacking Suite EM Pulse Gun Small Laser Small Laser Beam Cannon Light Assault Rifle Grenade Launcher Grenade Launcher Peak State ------------ > --- POWER ------------ Light Ion Engine > --- PROPULSION ------- Wheel Wheel > --- UTILITY ---------- Huge Storage Unit Seismic Detector > --- WEAPON ----------- Light Assault Rifle Grenade Launcher > --- INVENTORY -------- Ion Engine Light Ion Engine Light Nuclear Core Wheel Compact Wheel Hover Unit Hover Unit Hover Unit Hover Unit Hover Unit Heat Sink Large Storage Unit Sensor Array Improved Terrain Scanner Terrain Scan Processor Hacking Suite EM Pulse Gun Small Laser Small Laser Beam Cannon Light Assault Rifle Light Assault Rifle Grenade Launcher [Rating: 10] Favorites ----------- Power Light Ion Engine Engine Light Ion Engine Propulsion Wheel Wheel Wheel Utility Seismic Detector Device Seismic Detector Storage Large Storage Unit Weapon Light Assault Rifle Energy Gun Small Laser Ballistic Gun Light Assault Rifle Launcher Grenade Launcher Build | -11 -10 -10 ------- Run | Yrd Mat Min Slots Evolved . | . . . Power . | . . . Propulsion . | . . . Utility . | . . . Weapon . | . . . Parts Attached 26 | 7 15 4 Power 3 | 1 2 . Engine 3 | 1 2 . Core . | . . . Reactor . | . . . Propulsion 8 | 2 6 . Treads . | . . . Leg . | . . . Wheel 8 | 2 6 . Hover . | . . . Flight . | . . . Utility 6 | 2 2 2 Device 3 | 1 . 2 Storage 3 | 1 2 . Processor . | . . . Hackware . | . . . Protection . | . . . Artifact . | . . . Weapon 9 | 2 5 2 Energy Gun 1 | . 1 . Energy Cannon . | . . . Ballistic Gun 5 | 2 2 1 Ballistic Cannon . | . . . Launcher 3 | . 2 1 Special Weapon . | . . . Impact Weapon . | . . . Slashing Weapon . | . . . Piercing Weapon . | . . . Special Melee Weapon . | . . . Unidentified Prototypes . | . . . Parts Lost 4 | . 4 . Power 1 | . 1 . Propulsion 2 | . 2 . Utility . | . . . Weapon 1 | . 1 . Highest Loss Streak 3 | . 3 . To Critical Strikes . | . . . Average Slot Usage (%) 97 | . 96 100 Engine 13 | . 13 14 Wheel 25 | . 25 28 Device 14 | . 14 14 Storage 14 | . 14 14 Energy Gun 6 | . 7 3 Ballistic Gun 18 | . 19 14 Launcher 2 | . . 10 Peak Build Rating 10 | 7 9 10 Average Rating 8 | 6 8 9 On Entrance 5 | . 7 9 Naked Turns . | . . . Heaviest Build 88 | 12 86 88 Greatest Support 26 | 26 26 20 Greatest Overweight (x) 4 | 1 4 4 Average Overweight (x) 1 | . 1 4 Largest Inventory Capacity 25 | 8 25 25 Average Capacity 16 | 7 14 25 Most Carried 23 | 6 22 23 Average Carried 13 | 4 12 22 Final Capacity 25 | 8 25 25 Final Carried 23 | 6 22 23 Class Distribution -------------------- 100% | Mutant Dominant Class ---------------- Mutant | -10/Materials Mutant | -10/Mines Resources | -11 -10 -10 ----------- Run | Yrd Mat Min Matter Collected 925 | 396 470 59 Remotely . | . . . Salvage Created 1433 | 232 1120 81 Parts 85 | 17 63 5 Haulers Intercepted 2 | . 2 . Recyclers Shooed 1 | 1 . . Parts Field Recycled . | . . . Retrieved Matter . | . . . Parts Self-Destructed . | . . . Prevented . | . . . Kills | -11 -10 -10 ------- Run | Yrd Mat Min Combat Hostiles Destroyed 21 | . 18 3 Guns 14 | . 12 2 AOE 7 | . 6 1 Classes Destroyed 9 | 3 5 1 Worker 4 | 2 2 . Builder 2 | . 2 . Tunneler 7 | 6 1 . Hauler 2 | . 2 . Recycler 4 | 1 3 . Operator 2 | . 2 . Watcher 2 | . 2 . Grunt 20 | . 18 2 Sentry 1 | . . 1 Best Kill Streak 4 | 3 4 1 Combat Bots Only 4 | . 4 1 Max Kills in Single Turn 2 | 1 2 1 Gunslinging . | . . . Exploded 2 | . 2 1 Melee . | . . . Uniques/NPCs Destroyed . | . . . Combat | -11 -10 -10 -------- Run | Yrd Mat Min Hostile Shots Fired 102 | . 73 29 Missed 35 | . 24 11 Damage Taken 861 | . 608 253 Core 258 | . 184 74 Absorbed by Shields . | . . . Regen/Repaired (Parts) 38 | . 38 . Core Remaining (%) 100 | 100 . . Volleys Fired 166 | 42 101 23 Largest 2 | 2 2 2 Hottest 60 | 40 60 40 Shots Fired 300 | 84 189 27 Gun 286 | 84 182 20 Cannon . | . . . Launcher 14 | . 7 7 Special . | . . . Kinetic 242 | 84 138 20 Thermal 44 | . 44 . Explosive 14 | . 7 7 Electromagnetic . | . . . Robot Hit Streak 15 | 6 15 11 Robot Miss Streak 4 | 3 4 3 Penetration Max . | . . . Secondary Targets 2 | . 1 1 Max Gunslinging Chain 1 | . 1 1 Shots Hit Robots 193 | 51 123 19 Core Hits 81 | 15 57 9 Critical Kills 1 | 1 . . Critical Parts Destroyed 1 | . 1 . Critical Strikes 2 | 1 1 . Destroy 2 | 1 1 . Melee Attacks . | . . . Impact . | . . . Slashing . | . . . Piercing . | . . . Sneak Attacks . | . . . Combat Hostiles . | . . . Follow-up Attacks . | . . . Damage Inflicted 2785 | 524 1868 393 Guns 1826 | 524 1204 98 Cannons . | . . . Explosions 959 | . 664 295 Melee . | . . . Ramming . | . . . Kinetic 1465 | 524 843 98 Thermal 361 | . 361 . Explosive 959 | . 664 295 Electromagnetic . | . . . Impact . | . . . Slashing . | . . . Piercing . | . . . Highest Corruption . | . . . Average Corruption . | . . . Corruption Purged . | . . . Corruption Blocked . | . . . Overload Shots . | . . . Overflow Damage 7 | . 3 4 Projectiles . | . . . Explosions 7 | . 3 4 Melee . | . . . Knockbacks . | . . . Impact . | . . . Kinetic . | . . . Secondary . | . . . Self-Inflicted Damage 13 | . 13 . Shots 1 | . 1 . Rammed . | . . . Targets Rammed . | . . . Kicked . | . . . Crushed . | . . . Highest Temperature 135 | . 135 9 Average Temperature 34 | . 34 9 Received Heat Transfer 453 | . 339 114 Siege Activations . | . . . Robots Corrupted . | . . . Combat Hostiles . | . . . Parts Fried . | . . . Impact Corruptions . | . . . Robots Melted . | . . . Combat Hostiles . | . . . Parts Melted . | . . . Heat Transferred 775 | . 775 . Parts Sabotaged . | . . . Parts Stolen . | . . . Parts Stripped . | . . . Power Chain Reactions . | . . . Alert | -11 -10 -10 ------- Run | Yrd Mat Min Peak Influence 745 | 45 745 354 Initial 213 | . 29 213 Average 348 | 18 429 270 Maximum Alert Level 3 | . 3 1 Low Security (%) 30 | 100 27 . Level 1 30 | . 15 100 Level 2 33 | . 49 . Level 3 5 | . 7 . Level 4 . | . . . Level 5 . | . . . High Security . | . . . Max Security . | . . . Squads Dispatched 7 | . 7 . Investigation 5 | . 5 . Extermination . | . . . Reinforcement 2 | . 2 . Assault . | . . . Garrison . | . . . Intercept . | . . . Searches Triggered . | . . . Construction Impeded . | . . . Haulers Reinforced . | . . . Active Scanning Responses . | . . . Cargo Convoy Interrupts . | . . . Stealth | -11 -10 -10 --------- Run | Yrd Mat Min Distress Signals 2 | . 2 . Communications Jammed . | . . . Distress Signals . | . . . Times Spotted 39 | . 33 6 Peak Tracking Total 6 | . 6 2 Tactical Retreats 5 | . 3 2 Traps | -11 -10 -10 ------- Run | Yrd Mat Min Traps Triggered 1 | . 1 . Indirectly . | . . . Trap Hack Attempts . | . . . Triggered . | . . . Disarmed . | . . . Reprogrammed . | . . . Reused . | . . . Traps Extracted . | . . . Installed . | . . . Triggered . | . . . Machines | -11 -10 -10 ---------- Run | Yrd Mat Min Machines Disabled 12 | . 12 . Max in Single Turn 3 | . 3 . Machines Repaired . | . . . Machines Dismantled . | . . . Machines Sabotaged . | . . . Overloaded Fab Kills . | . . . Hacking | -11 -10 -10 --------- Run | Yrd Mat Min Machines Accessed 9 | . 9 . Terminals 6 | . 6 . Fabricators . | . . . Repair Stations 1 | . 1 . Recycling Units 2 | . 2 . Scanalyzers . | . . . Garrison Access . | . . . Total Hacks 28 | . 28 . Successful 12 | . 12 . Failed 15 | . 15 . Catastrophic 2 | . 2 . Database Lockouts 1 | . 1 . Manual 20 | . 20 . Terminals 20 | . 20 . Fabricators . | . . . Repair Stations 2 | . 2 . Recycling Units 6 | . 6 . Scanalyzers . | . . . Garrison Access . | . . . Terminal Hacks 2 | . 2 . Robot Analysis 1 | . 1 . Locate Traps 1 | . 1 . Fabricator Hacks . | . . . Repair Station Hacks 2 | . 2 . Scan Component 1 | . 1 . Repair 1 | . 1 . Recycling Unit Hacks 2 | . 2 . Retrieve Components 2 | . 2 . Scanalyzer . | . . . Garrison Access Hacks . | . . . Unauthorized Hacks 6 | . 6 . Terminals 4 | . 4 . Botnet 2 | . 2 . Disrupt 1 | . 1 . Operators 1 | . 1 . Fabricators . | . . . Repair Stations . | . . . Recycling Units 2 | . 2 . Tunnel 2 | . 2 . Scanalyzers . | . . . Garrison Access . | . . . Data Cores Recovered . | . . . Used . | . . . Hacking Detections 7 | . 7 . Full Trace Events 2 | . 2 . Feedback Events . | . . . Feedback Blocked . | . . . Robot Schematics Acquired . | . . . Robots Built . | . . . Authchips . | . . . Time . | . . . Total Robot Build Rating . | . . . Part Schematics Acquired . | . . . Parts Built . | . . . Authchips . | . . . Time . | . . . Total Part Build Rating . | . . . Parts Repaired 1 | . 1 . Time 26 | . 26 . Parts Recycled . | . . . Recycled Matter . | . . . Retrieved Matter . | . . . Retrieved Components 5 | . 5 . Parts Scanalyzed . | . . . Part Schematics Acquired . | . . . Parts Damaged . | . . . Bothacking | -11 -10 -10 ------------ Run | Yrd Mat Min Used RIF Installer . | . . . Robots Hacked . | . . . Non-combat . | . . . Combat . | . . . Robot Hacks Applied . | . . . Relay Couplers Released . | . . . Fabnet Peak Effective % . | . . . Robots Rewired . | . . . Allies Hacked . | . . . Hacks Repelled . | . . . Allies | -11 -10 -10 -------- Run | Yrd Mat Min Total Allies . | . . . Largest Group . | . . . Highest-Rated Group . | . . . Highest-Rated Ally . | . . . Total Orders . | . . . Ally Attacks . | . . . Total Damage . | . . . Kills . | . . . Allies Corrupted . | . . . Allies Melted . | . . . Intel | -11 -10 -10 ------- Run | Yrd Mat Min Robot Analysis Total 1 | . 1 . Derelict Logs Recovered 1 | . . 1 Drone Launches . | . . . Drone Recoveries . | . . . Exploration | -11 -10 -10 ------------- Run | Yrd Mat Min Turns Passed 1985 | 239 1352 394 Spaces Moved 1136 | 93 804 239 Core 3 | 3 . . Treads . | . . . Legs . | . . . Wheels 1133 | 90 804 239 Hover . | . . . Flight . | . . . Fastest Speed 50 | 50 90 140 Average Speed 110 | 89 104 140 Slowest Speed 140 | 100 140 140 Overloaded Moves . | . . . Propulsion Burnouts . | . . . Robots Hopped . | . . . Cave-ins Triggered . | . . . Exploration Rate (%) 53 | 5 94 62 Regions Visited 2 Branch Regions 1 Pre-discovered Areas 3 | . 2 1 Known Exits Taken . | . . . Unknown Exits Taken 2 | 1 1 . Scrap Searched 1 | . . 1 Spaces Dug . | . . . Terrain Destroyed 113 | . 80 33 Melee . | . . . Projectile . | . . . AOE 113 | . 80 33 Terrain Rammed . | . . . Walls Destroyed . | . . . Machines Disabled . | . . . Actions | -11 -10 -10 --------- Run | Yrd Mat Min Total 1591 | 169 1147 275 Wait 221 | 22 191 8 Move 1134 | 92 803 239 Hop . | . . . Pick Up 33 | 6 26 1 Fast Attach 7 | 7 . . Attach 4 | . 4 . Detach . | . . . Swap 15 | . 11 4 Drop 11 | . 11 . Fire 166 | 42 101 23 Melee . | . . . Ram . | . . . Kick . | . . . Crush . | . . . Escape Stasis . | . . . Rewire . | . . . Trap . | . . . Miscellaneous . | . . . Route ------- -11/Scrapyard -10/Materials (discovered 4 exits: [*Mat x3] / [*Min]) -10/Mines (discovered 1 exit: [*Mat]) History --------- Turn | Location | Event 15 | -11/Scrapyard | Discovered new exit (range 14) 240 | -11/Scrapyard | Entered Materials 316 | -10/Materials | Build established: Mutant 666 | -10/Materials | Discovered new exit (range 15) 712 | -10/Materials | Discovered new exit (range 16) 912 | -10/Materials | Core integrity fell below 50% 925 | -10/Materials | Lost 3 parts (1p1n1w) 1036 | -10/Materials | Discovered new exit (range 5) 1198 | -10/Materials | Repaired Grenade Launcher 1327 | -10/Materials | Discovered new exit (range 8) 1434 | -10/Materials | Central database locked down 1592 | -10/Materials | Entered Mines 1930 | -10/Mines | Learned location of Zion (-6) 1944 | -10/Mines | Discovered new exit (range 10) 1965 | -10/Mines | Core integrity fell below 20% 1986 | -10/Mines | Destroyed by Y-45 Defender with Beam Rifle Last Messages --------------- 01742_ U-05 Engineer builds a Wall. 01743_ The unstable cave ceiling collapses. 01743_ U-05 Engineer builds a Wall. 01751_ U-05 Engineer lays Concrete. 01847_ Searching scrap... 01847_ Found Lgt. Ion Engine. 01847_ Found Grenade Launcher. 01847_ Found Sensor Array. 01847_ Found 59 Matter. 01848_ Acquired 59 matter. 01851_ Acquired Grenade Launcher. 01878_ G-47 Trooper destroyed. 01930_ Acquired derelict log, extracted data. World map updated: -6/Zion. 01944_ EXIT=FOUND 01974_ Y-45 Defender destroyed. 01974_ Switching to secondary target: Y-45 Defender. 01982_ R-06 Scavenger collects Imp. Ion Engine. 01985_ R-06 Scavenger collects Lgt. Treads. 01986_ Critical hit (Burn: +37). Map ----- +----------------------------------------------------+ | ?? ???????# ## ##?####?### #??# #????? | | ??????????????# #######?????##### #??#*#????? | | ??????????????# ??????????## # #??# #????? | | ?????????????? ?????????# #### #????? | | ?????????????# #????????# #????? | | ?????????????## #???????## #????? | | ??????????????## ????????## ####????? | | ????????????????# #????????# """ #???????? | | ??????????????????# #???????## """ #???????? | | ???????????????????# ##??????# """ #???????? | | ???????????????????# ##?????# """ #???????? | | ????????????????????# ##????# #???????? | | ?????????????????????# ###### ##???????? | | ??????????????????????# ##???????? | | ??????????????????????# ##??????? | | ???????????????????#### ##### ##?????? | | ???????????????????# #???## ##????? | | ??????????##???????# ### #????### ###??? | | ?????????## ?????# #?## ########## #??? | | ?????# ## #### #######?#"]["#### #?? | | ????# #????""!!""#?## #?? | | ????# # #????? #??## #?? | | ?????????????########## #????? #?????# ##?? | | ??????????????????????# #???###//###?????###??? | | ???????????????????#### ##### %[ ###????????? | | ???????????????????# @ Y r ! #????????? | | ???????????????????# #????????? | | ???????????????????# #????????? | | ???????????????????# #????????? | | ???????????????????# #????????? | | ???????????????????# #????????? | | ???????????????????# #????????? | | ???????????????????# < #????????? | | ???????????????????# #????????? | | ???????????????????# #????????? | | ???????????????????# #????????? | | ???????????????????# #????????? | | ???????????????????###################????????? | | ??????????????????????????????????????????????? | | | | | | | | | | | | | | | | | | | | | | | +----------------------------------------------------+ Best States ------------- Heat Dissipation 35 Energy Generation 10 Energy Capacity 250 Matter Stores 300 Matter Capacity 300 Sight Range 16 Terrain Scan Density 10 Evasion (%) 44 Item Schematics ----------------- None Robot Schematics ------------------ None Fabricated ------------ Nothing Alien Tech Used ----------------- None Achievements -------------- None Challenges ------------ None Game ------ Seed AluminumShadeBoomstick Manual? 0 Play Time 00:18:10 Cumulative 277.0 hours Start 2024.10.31 @ 21:39:30 End 2024.10.31 @ 22:01:31 Sessions 1 Manual Loads 0 Difficulty Rogue Special Mode None Game No. 145 Rogue 145 Adventurer 0 Explorer 0 Win Type - Total 4 Types 4/0/0/0/0/0/0/0/0 Lore% 44 Gallery% 66 Achievement% 58 Wizard Run 0 Options --------- Layout 0 ASCII 0 Keyboard 1 Movement Vi Keybinds 0 Fullscreen 2 Font 18/SmallcapsGlow Map View 76x50 Zoom Use 0% Tactical HUD 1 Map Filters NONE Filters NONE Steam 1 RUN: 11828b37-dea1-4dea-a9fb-b897da7ea981